bitfinex-derivatives/quotes_BTCF0:USTF0_20250208
["timestamp","ask_amount","ask_price","bid_price","bid_amount"]
[1739003915430,0.00015623,96039.0,96038.0,0.2082406]
[1739003916946,0.00115623,96039.0,96038.0,0.2082406]
[1739003917846,0.00315623,96039.0,96038.0,0.2082406]
[1739003919646,0.2081916,96061.0,96058.0,0.2081973]
[1739003920739,0.005,96059.0,96049.0,0.1249536]
[1739003920945,0.008,96059.0,96049.0,0.1249536]
[1739003921158,0.008,96059.0,96058.0,0.2081973]
[1739003922745,0.01030239,96064.0,96049.0,0.1249536]
[1739003922947,0.012,96059.0,96049.0,0.1249536]
[1739003923249,0.3728,96059.0,96049.0,0.00015623]
[1739003923640,0.3708,96059.0,96049.0,0.00015623]
[1739003923848,0.3688,96059.0,96049.0,0.00015623]
[1739003924350,0.3688,96059.0,96053.0,0.2082075]
[1739003924650,0.3708,96059.0,96053.0,0.2082075]
[1739003925349,0.3728,96059.0,96053.0,0.2082075]
[1739003926050,0.3638,96059.0,96053.0,0.2082075]
[1739003926247,0.3688,96059.0,96053.0,0.2082075]
[1739003928755,0.3688,96059.0,96049.0,0.1249536]
[1739003928952,0.3688,96059.0,96054.0,0.2082054]
[1739003930053,0.3678,96059.0,96049.0,0.1249536]
[1739003930250,0.3708,96059.0,96049.0,0.1249536]
[1739003930653,0.3638,96059.0,96057.0,0.2081981]
[1739003930849,0.3688,96059.0,96057.0,0.2081981]
[1739003932055,0.3658,96059.0,96057.0,0.2081981]
[1739003932256,0.3708,96059.0,96057.0,0.2081981]
[1739003932748,0.3658,96059.0,96057.0,0.2081981]
[1739003932950,0.3728,96059.0,96057.0,0.2081981]
[1739003933150,0.3678,96059.0,96057.0,0.2081981]
[1739003933351,0.3708,96059.0,96057.0,0.2081981]
[1739003933554,0.3638,96059.0,96057.0,0.2081981]
[1739003933858,0.3688,96059.0,96051.0,0.2082119]
[1739003934860,0.05062584,96058.0,96051.0,0.2082119]
[1739003935743,0.05062584,96058.0,96049.0,0.00015623]
[1739003936360,0.05362584,96058.0,96051.0,0.2082119]
[1739003936859,0.05062584,96058.0,96051.0,0.2082119]
[1739003937058,0.06262584,96058.0,96051.0,0.2082119]
[1739003937458,0.3608,96057.0,96051.0,0.2082119]
[1739003939254,0.3638,96057.0,96051.0,0.2082119]
[1739003939756,0.3678,96057.0,96051.0,0.2082119]
[1739003940353,0.3678,96057.0,96049.0,0.00015623]
[1739003940354,0.3678,96057.0,96052.0,0.2082095]
[1739003941250,0.2082034,96056.0,96052.0,0.2082095]
[1739003941762,0.2082039,96055.0,96049.0,0.00015623]
[1739003943468,0.2182039,96055.0,96049.0,0.20837143]
[1739003943670,0.2182039,96055.0,96050.0,0.2082133]
[1739003944865,0.2082065,96054.0,96050.0,0.2082133]
[1739003945869,0.01,96055.0,96049.0,0.00015623]
[1739003946170,0.2082085,96053.0,96049.0,0.00015623]
[1739003946769,0.01,96054.0,96049.0,0.00015623]
[1739003947064,0.2082107,96052.0,96049.0,0.00015623]
[1739003947263,0.2082129,96051.0,96049.0,0.00015623]
[1739003948971,0.2102129,96051.0,96049.0,0.00015623]
[1739003949763,0.2142129,96051.0,96049.0,0.00015623]
[1739003954471,0.07156,96050.0,96049.0,0.00015623]
[1739003955870,0.08356,96050.0,96049.0,0.00015623]
[1739003957771,0.2692013,96050.0,96049.0,0.00015623]
[1739003961070,0.1976413,96050.0,96049.0,0.00015623]
[1739003961678,0.012,96050.0,96049.0,0.00015623]
[1739003969980,0.06262993,96050.0,96049.0,0.00015623]
[1739003972782,0.06262993,96050.0,96049.0,0.20837303]
[1739003974684,0.2081826,96065.0,96049.0,0.00015623]
[1739003974988,0.2081847,96064.0,96056.0,0.2082009]
[1739003975285,0.2081847,96064.0,96054.0,0.08198586]
[1739003975286,0.36095623,96068.0,96062.0,0.2081882]
[1739003975487,0.36095623,96068.0,96063.0,0.0315]
[1739003975888,0.36095623,96068.0,96066.0,0.2081789]
[1739003976280,0.00015623,96068.0,96066.0,0.2081789]
[1739003977989,0.00815623,96068.0,96067.0,0.0322]
[1739003978188,0.01415623,96068.0,96067.0,0.0322]
[1739003979282,0.00815623,96068.0,96067.0,0.0322]
[1739003979490,0.01415623,96068.0,96067.0,0.0332]
[1739003979988,0.00115623,96068.0,96067.0,0.0382]
[1739003980189,0.01015623,96068.0,96067.0,0.0392]
[1739003980485,0.01015623,96068.0,96067.0,0.2554]
[1739003980987,0.00215623,96068.0,96067.0,0.2614]
[1739003981582,0.00115623,96068.0,96067.0,0.2544]
[1739003981783,0.00215623,96068.0,96067.0,0.2614]
[1739003982894,0.00215623,96068.0,96067.0,0.2292]
[1739003986887,0.00215623,96068.0,96067.0,0.013]
[1739003998806,0.00215623,96068.0,96067.0,0.2292]
[1739004000906,0.00215623,96068.0,96067.0,0.23955087]
[1739004001705,0.00215623,96068.0,96067.0,0.2292]
[1739004007401,0.05277343,96068.0,96067.0,0.2292]
[1739004014503,0.00215623,96068.0,96067.0,0.2292]
[1739004021920,0.00215623,96068.0,96067.0,0.437378]
[1739004029425,0.00215623,96068.0,96067.0,0.6872409]
[1739004029623,0.00215623,96068.0,96067.0,0.70330818]
[1739004030623,0.00215623,96068.0,96067.0,0.6872409]
[1739004030827,0.00215623,96068.0,96067.0,0.69769916]
[1739004032830,0.00215623,96068.0,96067.0,0.71376662]
[1739004033915,0.00215623,96068.0,96067.0,0.46390372]
[1739004035523,0.00215623,96068.0,96067.0,0.82470372]
[1739004037831,0.00215623,96068.0,96067.0,0.80863626]
[1739004038130,0.00215623,96068.0,96067.0,0.798178]
[1739004039528,0.00215623,96068.0,96067.0,0.437378]
[1739004039729,0.00215623,96068.0,96067.0,0.798178]
[1739004041731,0.00215623,96068.0,96067.0,0.81434769]
[1739004042431,0.00215623,96068.0,96067.0,1.0640336]
[1739004045632,0.00215623,96068.0,96067.0,0.81434769]
[1739004052039,0.00215623,96068.0,96067.0,0.798178]
[1739004052425,0.00215623,96068.0,96067.0,0.437378]
[1739004052621,0.00215623,96068.0,96067.0,0.798178]
[1739004053340,0.00215623,96068.0,96067.0,0.437378]
[1739004053529,0.00215623,96068.0,96067.0,0.798178]
[1739004053836,0.00215623,96068.0,96067.0,0.81426405]
[1739004054536,0.00215623,96068.0,96067.0,0.81426416]
[1739004055836,0.00215623,96068.0,96067.0,0.798178]
[1739004061335,0.00215623,96068.0,96067.0,0.437378]
[1739004063937,0.00215623,96068.0,96067.0,0.45348045]
[1739004072060,0.00215623,96068.0,96067.0,0.24530245]
[1739004072252,0.03315623,96068.0,96067.0,0.24530245]
[1739004072659,0.04348041,96068.0,96067.0,0.02910245]
[1739004072861,0.04348041,96068.0,96067.0,0.26284579]
[1739004075860,0.2081889,96062.0,96061.0,0.3119509]
[1739004077165,0.2082021,96056.0,96050.0,0.08193473]
[1739004077460,0.3608,96053.0,96050.0,0.08193473]
[1739004077661,0.3608,96053.0,96049.0,0.00015623]
[1739004078257,0.10212,96055.0,96049.0,0.00015623]
[1739004078459,0.10212,96055.0,96050.0,0.004]
[1739004078659,0.2092021,96056.0,96050.0,0.006]
[1739004078660,0.001,96053.0,96050.0,0.006]
[1739004079269,0.2082045,96055.0,96050.0,0.004]
[1739004079462,0.0309,96052.0,96050.0,0.004]
[1739004079867,0.2391113,96052.0,96050.0,0.004]
[1739004080067,0.3608,96051.0,96050.0,0.004]
[1739004080265,0.392,96051.0,96050.0,0.004]
[1739004080860,0.392,96051.0,96049.0,0.00015623]
[1739004081071,0.2082149,96050.0,96049.0,0.00415623]
[1739004081772,0.2082149,96050.0,96049.0,0.00015623]
[1739004082267,0.2092149,96050.0,96049.0,0.00215623]
[1739004083773,0.2102149,96050.0,96049.0,0.00615623]
[1739004085368,0.2082373,96040.0,96035.0,0.0315]
[1739004085674,0.2082419,96038.0,96030.0,0.08193473]
[1739004085968,0.07076,96037.0,96030.0,0.08193473]
[1739004086168,0.2790041,96037.0,96030.0,0.08193473]
[1739004086371,0.239746,96036.0,96030.0,0.08193473]
[1739004086570,0.0315,96036.0,96028.0,0.18718534]
[1739004086776,0.2082604,96029.0,96028.0,0.18718534]
[1739004087859,0.2082604,96029.0,96028.0,0.18818534]
[1739004088060,0.2092604,96029.0,96028.0,0.18818534]
[1739004088971,0.2092604,96029.0,96028.0,0.001]
[1739004089176,0.2102604,96029.0,96028.0,0.001]
[1739004092485,0.002,96029.0,96028.0,0.001]
[1739004092873,0.002,96029.0,96028.0,0.0637]
[1739004128007,0.15696744,96029.0,96028.0,0.0637]
[1739004128508,0.15596744,96029.0,96028.0,0.0637]
[1739004131302,0.001,96029.0,96028.0,0.0637]
[1739004139805,0.001,96029.0,96028.0,0.0334]
[1739004148018,0.001,96029.0,96028.0,0.001]
[1739004149218,0.301,96029.0,96028.0,0.001]
[1739004149410,0.2082691,96025.0,96023.0,0.09901207]
[1739004149612,0.46232,96024.0,96023.0,0.09901207]
[1739004150113,0.46232,96024.0,96010.0,0.2499945]
[1739004150114,0.2082994,96011.0,96010.0,0.2499945]
[1739004150309,0.6398194,96011.0,96010.0,0.2499945]
[1739004151616,0.6408194,96011.0,96010.0,0.2499945]
[1739004152018,0.6418194,96011.0,96010.0,0.2499945]
[1739004153623,0.3628,96011.0,96010.0,0.2499945]
[1739004153922,0.002,96011.0,96009.0,0.2715031]
[1739004155414,0.001,96011.0,96009.0,0.2715031]
[1739004155619,0.002,96011.0,96009.0,0.2715031]
[1739004156321,0.002,96011.0,96009.0,0.2820194]
[1739004163222,0.00015623,96020.0,96019.0,0.2082821]
[1739004163423,0.00015623,96020.0,96019.0,0.5690821]
[1739004164533,0.00115623,96020.0,96019.0,0.5690821]
[1739004164836,0.00215623,96020.0,96019.0,0.5690821]
[1739004165224,0.00215623,96020.0,96019.0,0.7852821]
[1739004169325,0.00215623,96020.0,96019.0,0.79550638]
[1739004175230,0.00215623,96020.0,96019.0,0.43470638]
[1739004175431,0.00215623,96020.0,96019.0,0.79550638]
[1739004177733,0.00215623,96020.0,96019.0,0.43470638]
[1739004178040,0.00215623,96020.0,96019.0,0.79550638]
[1739004178633,0.00215623,96020.0,96019.0,0.43470638]
[1739004178833,0.00215623,96020.0,96019.0,0.79550638]
[1739004179431,0.00215623,96020.0,96019.0,0.43470638]
[1739004179626,0.00215623,96020.0,96019.0,0.79550638]
[1739004180436,0.00215623,96020.0,96019.0,0.43470638]
[1739004180629,0.00215623,96020.0,96019.0,0.79550638]
[1739004181640,0.00215623,96020.0,96019.0,0.43470638]
[1739004182732,0.00215623,96020.0,96019.0,0.4244821]
[1739004182937,0.00215623,96020.0,96019.0,0.2082821]
[1739004189038,0.00215623,96020.0,96019.0,0.4244821]
[1739004198746,1e-08,96020.0,96019.0,0.4244821]
[1739004199652,1e-08,96020.0,96019.0,0.6744766]
[1739004205251,1e-08,96020.0,96019.0,0.4244821]
[1739004210068,1e-08,96020.0,96019.0,0.8173821]
[1739004211063,0.00015623,96029.0,96028.0,0.2082626]
[1739004211248,0.00015623,96029.0,96028.0,0.2789426]
[1739004212663,0.00115623,96029.0,96028.0,0.2799426]
[1739004212861,0.00115623,96029.0,96028.0,0.2819426]
[1739004215757,0.00115623,96029.0,96028.0,0.4981426]
[1739004216562,0.00115623,96029.0,96028.0,0.5288426]
[1739004216863,0.00115623,96029.0,96028.0,0.53933171]
[1739004220761,0.0325,96038.0,96037.0,0.208243]
[1739004221368,0.51675714,96041.0,96028.0,0.49630211]
[1739004221668,0.51571713,96041.0,96040.0,0.2082365]
[1739004222462,0.15491713,96041.0,96040.0,0.5690365]
[1739004222863,0.15591713,96041.0,96040.0,0.7852365]
[1739004223657,0.15691713,96041.0,96040.0,0.7852365]
[1739004225662,0.002,96041.0,96040.0,0.7852365]
[1739004226864,0.0321,96049.0,96044.0,0.2082279]
[1739004227070,0.0321,96049.0,96044.0,0.4244279]
[1739004227965,0.0321,96049.0,96048.0,0.2082192]
[1739004228766,0.0652,96049.0,96048.0,0.2082192]
[1739004229671,0.0702,96049.0,96048.0,0.2082192]
[1739004230371,0.0732,96049.0,96048.0,0.2082192]
[1739004233267,0.0401,96049.0,96048.0,0.2082192]
[1739004236074,0.008,96049.0,96048.0,0.2788592]
[1739004236473,0.008,96049.0,96048.0,0.4950592]
[1739004237973,0.15491713,96065.0,96048.0,0.28684]
[1739004238180,0.15491713,96065.0,96064.0,0.2081845]
[1739004239484,0.16191713,96065.0,96064.0,0.2081845]
[1739004240183,0.007,96065.0,96064.0,0.2081845]
[1739004240977,0.011,96065.0,96064.0,0.2081845]
[1739004241384,0.3608,96071.0,96057.0,0.3608]
[1739004241687,0.01,96065.0,96064.0,0.2091845]
[1739004242486,0.004,96065.0,96064.0,0.2081845]
[1739004242685,0.003,96071.0,96070.0,0.2081715]
[1739004244386,0.002,96071.0,96070.0,0.2081715]
[1739004244777,0.002,96071.0,96061.0,0.0820165]
[1739004244987,0.007,96065.0,96064.0,0.2091845]
[1739004245884,0.003,96071.0,96070.0,0.2081715]
[1739004246086,0.05661769,96071.0,96070.0,0.2081715]
[1739004246679,0.05361769,96071.0,96070.0,0.2081715]
[1739004247085,0.05361769,96071.0,96070.0,0.02222001]
[1739004247285,0.05361769,96071.0,96064.0,0.001]
[1739004247788,0.05061769,96071.0,96064.0,0.001]
[1739004248094,0.005,96065.0,96064.0,0.2091845]
[1739004248587,0.05461769,96071.0,96069.0,0.2081735]
[1739004248788,0.004,96071.0,96069.0,0.2081735]
[1739004248986,0.007,96071.0,96069.0,0.2081735]
[1739004249579,0.004,96071.0,96069.0,0.2081735]
[1739004249779,0.007,96071.0,96069.0,0.2081735]
[1739004250686,0.005,96071.0,96069.0,0.2081735]
[1739004259299,0.15506569,96070.0,96069.0,0.2081735]
[1739004260497,0.15806569,96070.0,96069.0,0.2081735]
[1739004261192,0.16006569,96070.0,96069.0,0.2081735]
[1739004263002,0.005,96070.0,96069.0,0.2081735]
[1739004279113,0.05561623,96070.0,96069.0,0.2081735]
[1739004286319,0.005,96070.0,96069.0,0.2081735]
[1739004294326,0.05561749,96070.0,96069.0,0.2081735]
[1739004297135,0.05561749,96070.0,96069.0,0.21854508]
[1739004300736,0.005,96070.0,96069.0,0.21854508]
[1739004304435,0.005,96070.0,96069.0,0.2081735]
[1739004308144,0.05561849,96070.0,96069.0,0.2081735]
[1739004308732,0.0659856,96070.0,96069.0,0.2081735]
[1739004310236,0.05561849,96070.0,96069.0,0.2081735]
[1739004312347,0.1868181,96074.0,96073.0,0.208165]
[1739004313740,0.1938181,96074.0,96073.0,0.208165]
[1739004313941,0.1938181,96074.0,96073.0,0.568965]
[1739004316549,0.00715615,96074.0,96073.0,0.568965]
[1739004318738,0.2081294,96090.0,96073.0,0.3608]
[1739004318944,0.2081294,96090.0,96089.0,0.2081304]
[1739004319451,0.43232001,96093.0,96080.0,0.164033]
[1739004319752,0.43232001,96093.0,96091.0,0.2081246]
[1739004319942,0.43128,96093.0,96091.0,0.2081246]
[1739004320551,0.3608,96093.0,96091.0,0.2081246]
[1739004320742,0.00015615,96096.0,96095.0,0.2081174]
[1739004323436,0.00515615,96096.0,96095.0,0.2081174]
[1739004324944,0.64997557,96116.0,96095.0,0.577]
[1739004324945,0.22681236,96116.0,96095.0,0.577]
[1739004325243,0.22585235,96116.0,96095.0,0.577]
[1739004325444,0.15537235,96116.0,96095.0,0.577]
[1739004325645,0.15537235,96116.0,96115.0,0.2080741]
[1739004325943,0.15537235,96116.0,96106.0,0.0820165]
[1739004326144,0.36344485,96116.0,96109.0,0.2080863]
[1739004326449,0.2080769,96114.0,96109.0,0.2080863]
[1739004326948,0.2080849,96110.0,96106.0,0.00015606]
[1739004327336,0.53317235,96116.0,96106.0,0.00115606]
[1739004327553,0.53317235,96116.0,96109.0,0.2080849]
[1739004327554,0.2080741,96115.0,96109.0,0.2080849]
[1739004327735,0.009,96114.0,96109.0,0.2090849]
[1739004328046,0.2080795,96113.0,96109.0,0.2090849]
[1739004328248,0.2080795,96113.0,96109.0,0.2100849]
[1739004329646,0.2080795,96113.0,96109.0,0.2090849]
[1739004330246,0.2080795,96113.0,96109.0,0.2080849]
[1739004330446,0.2140795,96113.0,96109.0,0.2090849]
[1739004330646,0.2220795,96113.0,96109.0,0.2100849]
[1739004332744,0.014,96113.0,96111.0,0.208082]
[1739004333740,0.006,96113.0,96111.0,0.208082]
[1739004333957,0.014,96113.0,96112.0,0.2080806]
[1739004335853,0.15537235,96118.0,96112.0,0.2080806]
[1739004336056,0.014,96113.0,96112.0,0.2100806]
[1739004337256,0.2386709,96117.0,96112.0,0.2100806]
[1739004337459,0.2080767,96114.0,96112.0,0.002]
[1739004337852,0.3608,96113.0,96106.0,0.00015606]
[1739004338048,0.2080914,96107.0,96106.0,0.00015606]
[1739004339753,0.2130914,96107.0,96106.0,0.00015606]
[1739004340661,0.2170914,96107.0,96106.0,0.00015606]
[1739004340956,0.2170914,96107.0,96093.0,0.18687471]
[1739004340957,0.009,96107.0,96093.0,0.18687471]
[1739004341152,0.9297195,96094.0,96093.0,0.18687471]
[1739004341347,1.0001595,96094.0,96093.0,0.18687471]
[1739004341763,1.0001595,96094.0,96093.0,0.07004481]
[1739004342058,0.2081412,96084.0,96067.0,0.45752716]
[1739004342246,0.3608,96074.0,96067.0,0.45812716]
[1739004342446,0.3608,96074.0,96067.0,0.45828322]
[1739004343855,0.3618,96074.0,96069.0,0.00656121]
[1739004345561,0.3628,96074.0,96069.0,0.01356121]
[1739004346460,0.002,96074.0,96069.0,0.01356121]
[1739004347058,0.3628,96074.0,96069.0,0.01356121]
[1739004348257,0.002,96074.0,96069.0,0.01356121]
[1739004348958,0.2081704,96071.0,96069.0,0.01356121]
[1739004349959,0.2081704,96071.0,96069.0,0.00656121]
[1739004350156,0.2091704,96071.0,96069.0,0.01356121]
[1739004350551,0.2101704,96071.0,96069.0,0.01356121]
[1739004352862,0.22062405,96071.0,96069.0,0.01356121]
[1739004354862,0.3923,96070.0,96069.0,0.01356121]
[1739004355755,0.4137,96070.0,96069.0,0.01356121]
[1739004355958,0.4137,96070.0,96069.0,0.00656121]
[1739004356158,0.4147,96070.0,96069.0,0.01356121]
[1739004357068,0.4157,96070.0,96069.0,0.01356121]
[1739004362264,0.7765,96070.0,96069.0,0.01356121]
[1739004363462,0.7765,96070.0,96069.0,0.012]
[1739004366070,1.0765,96070.0,96069.0,0.012]
[1739004366577,1.0765,96070.0,96069.0,0.00164431]
[1739004366775,0.2082127,96051.0,96050.0,0.0649]
[1739004366972,0.6394927,96051.0,96050.0,0.0649]
[1739004367871,0.6394927,96051.0,96050.0,0.0739]
[1739004368077,0.6404927,96051.0,96050.0,0.0739]
[1739004368378,0.6414927,96051.0,96050.0,0.0829]
[1739004374270,0.65200934,96051.0,96050.0,0.0829]
[1739004377889,0.58152934,96051.0,96050.0,0.0829]
[1739004378183,0.65200934,96051.0,96050.0,0.0829]
[1739004387393,0.70264264,96051.0,96050.0,0.0829]
[1739004390089,0.621646,96051.0,96050.0,0.0829]
[1739004390293,0.4838733,96051.0,96050.0,0.0829]
[1739004390689,0.43324,96051.0,96050.0,0.0829]
[1739004397000,0.07244,96051.0,96050.0,0.0829]
[1739004404708,0.002,96051.0,96050.0,0.0829]
[1739004405011,0.07244,96051.0,96050.0,0.0829]
[1739004414111,0.002,96051.0,96050.0,0.0829]
[1739004419722,0.002,96051.0,96050.0,0.05]
[1739004419917,0.002,96051.0,96050.0,0.018]
[1739004420529,0.0414,96051.0,96050.0,0.018]
[1739004421819,0.0404,96051.0,96050.0,0.013]
[1739004422015,0.0394,96051.0,96050.0,0.004]
[1739004422214,0.0394,96051.0,96050.0,0.009]
[1739004422521,0.0394,96051.0,96050.0,0.005]
[1739004422726,0.0394,96051.0,96050.0,0.00075366]
[1739004427428,0.22368537,96051.0,96026.0,0.00156196]
[1739004427629,0.5690647,96027.0,96026.0,0.00156196]
[1739004427829,0.6395047,96027.0,96026.0,0.00156196]
[1739004428924,0.6405047,96027.0,96026.0,0.01056196]
[1739004429731,0.6415047,96027.0,96026.0,0.01056196]
[1739004433835,0.65207299,96027.0,96026.0,0.01056196]
[1739004435230,0.65207299,96027.0,96026.0,0.009]
[1739004436533,0.65207299,96027.0,96026.0,0.007]
[1739004437937,0.65107299,96027.0,96026.0,0.004]
[1739004438129,0.65207299,96027.0,96026.0,0.007]
[1739004448865,0.80694383,96027.0,96026.0,0.007]
[1739004450859,0.59867913,96027.0,96020.0,0.02033406]
[1739004451159,0.5690778,96021.0,96020.0,0.02033406]
[1739004451359,0.3608,96021.0,96017.0,0.00015615]
[1739004451566,0.2082843,96018.0,96017.0,0.00015615]
[1739004453864,0.2102843,96018.0,96017.0,0.00115615]
[1739004457362,0.2807243,96018.0,96017.0,0.00115615]
[1739004457765,0.33137641,96018.0,96017.0,0.00115615]
[1739004459266,0.26093641,96018.0,96017.0,0.00115615]
[1739004459465,0.33137641,96018.0,96017.0,0.00115615]
[1739004461561,0.33137641,96018.0,96017.0,0.0002175]
[1739004468773,0.33133641,96018.0,96017.0,0.0002175]
[1739004469167,0.43590514,96018.0,96017.0,0.0002175]
[1739004473869,0.36550514,96018.0,96017.0,0.0002175]
[1739004474081,0.43590514,96018.0,96017.0,0.0002175]
[1739004476491,0.51758357,96018.0,96017.0,0.0002175]
[1739004479881,0.2806843,96018.0,96017.0,0.0002175]
[1739004486687,0.6414843,96018.0,96017.0,0.0002175]
[1739004492289,0.69213615,96018.0,96017.0,0.0002175]
[1739004494889,0.8174085,96018.0,96017.0,0.0002175]
[1739004497295,0.2082929,96014.0,96013.0,0.0316]
[1739004498195,0.2082929,96014.0,96012.0,0.0309]
[1739004498401,0.2092929,96014.0,96012.0,0.0309]
[1739004499600,0.2102929,96014.0,96012.0,0.0309]
[1739004500403,0.2092929,96014.0,96012.0,0.0309]
[1739004500603,0.2102929,96014.0,96012.0,0.0309]
[1739004502199,0.1759242,96013.0,96012.0,0.0309]
[1739004502996,0.2463242,96013.0,96012.0,0.00580122]
[1739004503706,0.2473242,96013.0,96012.0,0.00580122]
[1739004504905,0.12305185,96013.0,96012.0,0.00580122]
[1739004507702,0.0724,96013.0,96012.0,0.00580122]
[1739004510505,0.12305185,96013.0,96012.0,0.00580122]
[1739004512812,0.05265185,96013.0,96012.0,0.00580122]
[1739004517418,0.002,96013.0,96012.0,0.00580122]
[1739004520421,0.3628,96013.0,96012.0,0.00580122]
[1739004526835,0.002,96013.0,96012.0,0.00580122]
[1739004527038,0.3628,96013.0,96012.0,0.00580122]
[1739004530031,0.3628,96013.0,96008.0,0.00015615]
[1739004530331,0.571096,96013.0,96008.0,0.00015615]
[1739004531041,0.3608,96009.0,96008.0,0.00015615]
[1739004532043,0.51602496,96009.0,96008.0,0.00015615]
[1739004532343,0.51702496,96009.0,96008.0,0.00015615]
[1739004533528,0.51802496,96009.0,96008.0,0.00015615]
[1739004536030,0.3628,96009.0,96008.0,0.00015615]
[1739004538338,0.002,96009.0,96008.0,0.00015615]
[1739004538541,0.41345178,96009.0,96008.0,0.00015615]
[1739004544751,0.05265178,96009.0,96008.0,0.00015615]
[1739004545050,0.41345178,96009.0,96008.0,0.00015615]
[1739004548940,0.3628,96009.0,96008.0,0.00015615]
[1739004549348,0.002,96009.0,96008.0,0.00015615]
[1739004549553,0.3628,96009.0,96008.0,0.00015615]
[1739004549747,0.002,96009.0,96008.0,0.00015615]
[1739004549948,0.3628,96009.0,96008.0,0.00015615]
[1739004550557,0.002,96009.0,96008.0,0.00015615]
[1739004550748,0.3628,96009.0,96008.0,0.00015615]
[1739004550947,0.002,96009.0,96008.0,0.00015615]
[1739004551147,0.3628,96009.0,96008.0,0.00015615]
[1739004555644,0.25660302,96019.0,96008.0,0.00015615]
[1739004555854,0.25660302,96019.0,96012.0,0.2082966]
[1739004556156,0.01055537,96018.0,96012.0,0.2082966]
[1739004556858,0.01055537,96018.0,96008.0,0.00015615]
[1739004557056,0.09261693,96018.0,96008.0,0.00015615]
[1739004557254,0.20829,96016.0,96008.0,0.00015615]
[1739004557450,0.20829,96016.0,96012.0,0.001]
[1739004558158,0.27861,96016.0,96012.0,0.001]
[1739004558853,0.27861,96016.0,96008.0,0.00215615]
[1739004559056,0.27961,96016.0,96012.0,0.002]
[1739004560351,0.27961,96016.0,96013.0,0.2082937]
[1739004560352,0.07132,96016.0,96013.0,0.2082937]
[1739004560551,0.07232,96016.0,96013.0,0.2082937]
[1739004561458,0.07232,96016.0,96013.0,0.2092937]
[1739004561657,0.07232,96016.0,96013.0,0.2102937]
[1739004563053,0.43312,96016.0,96013.0,0.2102937]
[1739004566466,0.43312,96016.0,96013.0,0.002]
[1739004566652,0.43312,96016.0,96014.0,0.2082921]
[1739004566857,0.43312,96016.0,96015.0,0.0641]
[1739004567363,0.3628,96016.0,96015.0,0.0641]
[1739004567759,0.3618,96016.0,96015.0,0.0641]
[1739004568061,0.3628,96016.0,96015.0,0.0641]
[1739004569366,0.3628,96016.0,96015.0,0.0651]
[1739004569668,0.3628,96016.0,96015.0,0.0661]
[1739004569966,0.002,96016.0,96015.0,0.0661]
[1739004572270,0.002,96016.0,96015.0,0.07630205]
[1739004574964,0.002,96016.0,96015.0,0.0661]
[1739004580779,0.3628,96016.0,96015.0,0.0661]
[1739004581172,0.002,96016.0,96015.0,0.0661]
[1739004581493,0.3628,96016.0,96015.0,0.0661]
[1739004584087,0.002,96016.0,96015.0,0.0661]
[1739004584269,0.002,96016.0,96015.0,0.0341]
[1739004584469,0.002,96016.0,96015.0,0.002]
[1739004587580,0.3628,96016.0,96015.0,0.002]
[1739004591385,0.3628,96016.0,96002.0,0.0312]
[1739004591386,0.2083113,96006.0,96002.0,0.0312]
[1739004591579,0.3608,96003.0,96002.0,0.0312]
[1739004591783,0.43112,96003.0,96002.0,0.0312]
[1739004592687,0.43112,96003.0,96002.0,0.0332]
[1739004593387,0.43212,96003.0,96002.0,0.0332]
[1739004593986,0.43212,96003.0,96002.0,0.0322]
[1739004594183,0.43312,96003.0,96002.0,0.0322]
[1739004597582,0.44344431,96003.0,96002.0,0.0322]
[1739004600686,0.49410064,96003.0,96002.0,0.0322]
[1739004601089,0.49210064,96003.0,96002.0,0.0312]
[1739004601291,0.49410064,96003.0,96002.0,0.0312]
[1739004603293,0.6491015,96003.0,96002.0,0.0312]
[1739004603500,0.59844517,96003.0,96002.0,0.0312]
[1739004609496,0.51780086,96003.0,96002.0,0.0312]
[1739004610187,0.15700086,96003.0,96002.0,0.0312]
[1739004610797,0.00730086,96003.0,96002.0,0.0312]
[1739004611184,0.00015624,96012.0,96002.0,0.04175413]
[1739004611489,0.00015624,96012.0,96008.0,0.2083045]
[1739004612399,0.00115624,96012.0,96008.0,0.2083045]
[1739004612591,0.00215624,96012.0,96008.0,0.2083045]
[1739004613694,0.3608,96009.0,96002.0,0.0312]
[1739004614196,0.3608,96009.0,96008.0,0.002]
[1739004614587,0.3608,96009.0,96008.0,0.004]
[1739004615188,0.3618,96009.0,96002.0,0.0332]
[1739004615395,0.3628,96009.0,96008.0,0.002]
[1739004617299,0.001,96009.0,96008.0,0.002]
[1739004617499,0.002,96009.0,96008.0,0.003]
[1739004617803,0.002,96009.0,96008.0,0.035]
[1739004618000,0.002,96009.0,96008.0,0.033]
[1739004619207,0.002,96009.0,96008.0,0.034]
[1739004620603,0.002,96009.0,96008.0,0.002]
[1739004620802,0.2103038,96009.0,96008.0,0.002]
[1739004624807,0.5711038,96009.0,96008.0,0.002]
[1739004630813,0.2103038,96009.0,96008.0,0.002]
[1739004631010,0.2103038,96009.0,96008.0,0.0344]
[1739004637914,0.002,96009.0,96008.0,0.0344]
[1739004643616,0.002,96009.0,96008.0,0.2506]
[1739004645522,0.2785512,96025.0,96008.0,0.2506]
[1739004645714,0.07028,96025.0,96021.0,0.2082771]
[1739004646827,0.15629945,96023.0,96021.0,0.2082771]
[1739004647323,0.15729945,96023.0,96021.0,0.2102771]
[1739004647521,0.15729945,96023.0,96021.0,0.2112771]
[1739004647727,0.002,96023.0,96021.0,0.2112771]
[1739004649217,0.002,96023.0,96021.0,0.003]
[1739004649528,0.3608,96022.0,96021.0,0.003]
[1739004649829,0.4228,96022.0,96021.0,0.003]
[1739004650525,0.4238,96022.0,96021.0,0.004]
[1739004650729,0.4248,96022.0,96021.0,0.004]
[1739004652026,0.43308,96022.0,96021.0,0.004]
[1739004656430,0.3628,96022.0,96021.0,0.004]
[1739004656636,0.43308,96022.0,96021.0,0.004]
[1739004659128,0.3628,96022.0,96021.0,0.004]
[1739004673345,0.43304,96022.0,96021.0,0.004]
[1739004674649,0.46564,96022.0,96012.0,0.00015624]
[1739004674842,0.3608,96013.0,96012.0,0.00015624]
[1739004675943,0.3608,96013.0,96012.0,0.00215624]
[1739004676247,0.5690951,96013.0,96012.0,0.00215624]
[1739004676739,0.5700951,96013.0,96012.0,0.00215624]